fUST/lending_fUST_20250618
["ID","MTS","AMOUNT","RATE_DAILY","PERIOD"]
[366349932,1750201834192,-604.96,0.00022136,6]
[366349933,1750201834201,-229.25,0.00022136,6]
[366349934,1750201834211,-460.0,0.00022136,6]
[366349935,1750201834221,-460.0,0.00022136,6]
[366349936,1750201834231,-648.71,0.00022136,6]
[366349937,1750201834240,-460.0,0.00022136,6]
[366349938,1750201834250,-460.0,0.00022136,6]
[366349939,1750201834260,-460.0,0.00022136,6]
[366349940,1750201834270,-460.0,0.00022136,6]
[366349941,1750201834279,-883.04,0.00022136,6]
[366349942,1750201834289,-460.0,0.00022136,6]
[366349943,1750201834299,-460.0,0.00022136,6]
[366349944,1750201834309,-460.0,0.00022136,6]
[366349945,1750201834319,-460.0,0.00022136,6]
[366349946,1750201834329,-460.0,0.00022136,6]
[366349947,1750201834339,-460.0,0.00022136,6]
[366349948,1750201834351,-460.0,0.00022136,6]
[366349949,1750201834364,-460.0,0.00022136,6]
[366349950,1750201834376,-460.0,0.00022136,6]
[366349951,1750201834388,-460.0,0.00022136,6]
[366349952,1750201834402,-568.05692561,0.00022136,6]
[366349953,1750201834414,-460.0,0.00022136,6]
[366349954,1750201834427,-440.0,0.00022136,6]
[366349955,1750201834440,-460.0,0.00022136,6]
[366349956,1750201834450,-460.0,0.00022136,6]
[366349957,1750201834461,-460.0,0.00022136,6]
[366349958,1750201834472,-460.0,0.00022136,6]
[366349959,1750201834485,-460.0,0.00022136,6]
[366349960,1750201834497,-584.08560913,0.00022136,6]
[366349961,1750201834511,-986.02,0.00022136,6]
[366349962,1750201834530,-507.89439087,0.00022136,6]
[366349963,1750201834542,-781.5,0.00022136,6]
[366349964,1750201834555,-460.0,0.00022136,6]
[366349965,1750201834567,-300.25,0.00022136,6]
[366349966,1750201834578,-460.0,0.00022136,6]
[366349967,1750201834588,-416.15103886,0.00022136,6]
[366349978,1750201838467,-460.0,0.00021917,6]
[366349979,1750201838479,-533.36,0.00021917,6]
[366349980,1750201838493,-460.0,0.00021917,6]
[366349981,1750201838504,-43.84896114,0.00022136,6]
[366349982,1750201838516,-636.92513685,0.00022176,6]
[366349983,1750201838528,-604.96,0.00022246,6]
[366349984,1750201838540,-460.0,0.00022246,6]
[366349985,1750201838552,-460.0,0.00022246,6]
[366349986,1750201838563,-343.46698268,0.00022246,6]
[366349987,1750201838578,-305.24301732,0.00022246,6]
[366349988,1750201838590,-460.0,0.00022246,6]
[366349989,1750201838602,-460.0,0.00022246,6]
[366349990,1750201838613,-460.0,0.00022246,6]
[366349991,1750201838625,-507.09,0.00022246,6]
[366349992,1750201838636,-883.04,0.00022246,6]
[366349993,1750201838646,-432.3,0.00022246,6]
[366349994,1750201838658,-460.0,0.00022246,6]
[366349995,1750201838670,-460.0,0.00022246,6]
[366349996,1750201838681,-517.03,0.00022246,6]
[366349997,1750201838692,-460.0,0.00022246,6]
[366349998,1750201838703,-460.0,0.00022246,6]
[366349999,1750201838715,-460.0,0.00022246,6]
[366350000,1750201838726,-530.9,0.00022246,6]
[366350001,1750201838737,-460.0,0.00022246,6]
[366350002,1750201838748,-321.77831593,0.00022246,6]
[366350003,1750201838882,-138.22168407,0.00022246,6]
[366350004,1750201838892,-460.0,0.00022246,6]
[366350005,1750201838903,-193.04,0.00022246,6]
[366350006,1750201838912,-171.95,0.00022246,6]
[366350007,1750201838923,-460.0,0.00022246,6]
[366350008,1750201838934,-460.0,0.00022246,6]
[366350009,1750201838946,-460.0,0.00022246,6]
[366350010,1750201838958,-2078.0,0.00022246,6]
[366350011,1750201838971,-664.89031586,0.00022246,6]
[366350012,1750201838985,-116.60968414,0.00022246,6]
[366350013,1750201838998,-460.0,0.00022246,6]
[366350014,1750201839009,-460.0,0.00022246,6]
[366350015,1750201839019,-636.92513685,0.00022314,7]
[366350016,1750201839029,-1340.77760373,0.00022356,2]
[366350017,1750201839125,-1631.84799021,0.00022356,2]
[366350018,1750201839140,-1121.7354252,0.00022356,2]
[366350019,1750201839153,-2365.14798957,0.00022356,2]
[366350020,1750201839164,-8803.54331934,0.00022356,2]
[366350021,1750201839175,-604.96,0.00022356,6]
[366350022,1750201839186,-460.0,0.00022356,6]
[366350023,1750201839196,-460.0,0.00022356,6]
[366350024,1750201839207,-648.71,0.00022356,6]
[366350025,1750201839218,-460.0,0.00022356,6]
[366350026,1750201839228,-460.0,0.00022356,6]
[366350027,1750201839240,-460.0,0.00022356,6]
[366350028,1750201839250,-883.04,0.00022356,6]
[366350029,1750201839261,-309.69369109,0.00022356,6]
[366350030,1750201839274,-150.30630891,0.00022356,6]
[366350031,1750201839285,-460.0,0.00022356,6]
[366350032,1750201839296,-270.25,0.00022356,6]
[366350033,1750201839307,-460.0,0.00022356,6]
[366350034,1750201839318,-260.50938182,0.00022356,6]
[366350035,1750201839331,-199.49061818,0.00022356,6]
[366350036,1750201839342,-460.0,0.00022356,6]
[366350037,1750201839354,-460.0,0.00022356,6]
[366350038,1750201839365,-460.0,0.00022356,6]
[366350039,1750201839375,-460.0,0.00022356,6]
[366350040,1750201839386,-408.8281322,0.00022356,6]
[366350041,1750201839399,-51.1718678,0.00022356,6]
[366350042,1750201839410,-460.0,0.00022356,6]
[366350043,1750201839421,-2078.0,0.00022356,6]
[366350044,1750201839434,-161.56449201,0.00022356,6]
[366350045,1750201839447,-619.93550799,0.00022356,6]
[366350046,1750201839457,-460.0,0.00022356,6]
[366350047,1750201839467,-460.0,0.00022356,6]
[366350048,1750201839477,-636.92513685,0.00022452,7]
[366350049,1750201839488,-521.63819237,0.00022465,6]
[366350050,1750201839502,-83.32180763,0.00022465,6]
[366350051,1750201839513,-460.0,0.00022465,6]
[366350052,1750201839524,-460.0,0.00022465,6]
[366350053,1750201839535,-648.71,0.00022465,6]
[366350054,1750201839547,-460.0,0.00022465,6]
[366350055,1750201839558,-460.0,0.00022465,6]
[366350056,1750201839569,-423.68,0.00022465,6]
[366350057,1750201839580,-883.04,0.00022465,6]
[366350058,1750201839590,-460.0,0.00022465,6]
[366350059,1750201839601,-460.0,0.00022465,6]
[366350060,1750201839736,-460.0,0.00022465,6]
[366350061,1750201839748,-460.0,0.00022465,6]
[366350062,1750201839758,-460.0,0.00022465,6]
[366350063,1750201839768,-460.0,0.00022465,6]
[366350064,1750201839777,-312.82,0.00022465,6]
[366350065,1750201839787,-460.0,0.00022465,6]
[366350066,1750201839797,-171.68,0.00022465,6]
[366350067,1750201839806,-460.0,0.00022465,6]
[366350068,1750201839816,-2078.0,0.00022465,6]
[366350069,1750201839826,-781.5,0.00022465,6]
[366350070,1750201839836,-460.0,0.00022465,6]
[366350071,1750201839846,-354.38,0.00022465,6]
[366350072,1750201839855,-500.0,0.00022517,2]
[366350073,1750201839865,-604.96,0.00022575,6]
[366350074,1750201839875,-460.0,0.00022575,6]
[366350075,1750201839885,-460.0,0.00022575,6]
[366350076,1750201839895,-648.71,0.00022575,6]
[366350077,1750201839907,-460.0,0.00022575,6]
[366350078,1750201839917,-460.0,0.00022575,6]
[366350079,1750201839929,-883.04,0.00022575,6]
[366350080,1750201839938,-460.0,0.00022575,6]
[366350081,1750201839948,-609.88,0.00022575,6]
[366350082,1750201839957,-460.0,0.00022575,6]
[366350083,1750201839967,-460.0,0.00022575,6]
[366350084,1750201839977,-460.0,0.00022575,6]
[366350085,1750201839987,-460.0,0.00022575,6]
[366350086,1750201839996,-460.0,0.00022575,6]
[366350087,1750201840006,-460.0,0.00022575,6]
[366350088,1750201840015,-2078.0,0.00022575,6]
[366350089,1750201840025,-781.5,0.00022575,6]
[366350091,1750201840035,-460.0,0.00022575,6]
[366350092,1750201840044,-636.92513685,0.0002259,7]
[366350093,1750201840054,-604.96,0.00022684,6]
[366350094,1750201840063,-460.0,0.00022684,6]
[366350095,1750201840073,-460.0,0.00022684,6]
[366350096,1750201840083,-648.71,0.00022684,6]
[366350097,1750201840092,-460.0,0.00022684,6]
[366350098,1750201840103,-460.0,0.00022684,6]
[366350099,1750201840113,-883.04,0.00022684,6]
[366350100,1750201840123,-460.0,0.00022684,6]
[366350101,1750201840133,-460.0,0.00022684,6]
[366350102,1750201840143,-460.0,0.00022684,6]
[366350103,1750201840153,-460.0,0.00022684,6]
[366350104,1750201840164,-157.35,0.00022684,6]
[366350105,1750201840174,-272.96,0.00022684,6]
[366350106,1750201840183,-460.0,0.00022684,6]
[366350108,1750201840194,-2078.0,0.00022684,6]
[366350109,1750201840204,-781.5,0.00022684,6]
[366350110,1750201840214,-595.64,0.00022684,6]
[366350111,1750201840224,-636.92513685,0.00022728,7]
[366350112,1750201840233,-604.96,0.00022794,6]
[366350113,1750201840243,-460.0,0.00022794,6]
[366350114,1750201840252,-460.0,0.00022794,6]
[366350115,1750201840262,-648.71,0.00022794,6]
[366350116,1750201840272,-460.0,0.00022794,6]
[366350117,1750201840282,-460.0,0.00022794,6]
[366350118,1750201840291,-883.04,0.00022794,6]
[366350119,1750201840301,-460.0,0.00022794,6]
[366350120,1750201840311,-460.0,0.00022794,6]
[366350121,1750201840322,-460.0,0.00022794,6]
[366350122,1750201840332,-460.0,0.00022794,6]
[366350123,1750201840342,-460.0,0.00022794,6]
[366350124,1750201840354,-2078.0,0.00022794,6]
[366350125,1750201840364,-781.5,0.00022794,6]
[366350126,1750201840373,-636.92513685,0.00022866,8]
[366350127,1750201840384,-500.0,0.00022903,2]
[366350128,1750201840394,-604.96,0.00022904,6]
[366350129,1750201840405,-460.0,0.00022904,6]
[366350130,1750201840415,-460.0,0.00022904,6]
[366350131,1750201840424,-648.71,0.00022904,6]
[366350132,1750201840434,-460.0,0.00022904,6]
[366350133,1750201840444,-460.0,0.00022904,6]
[366350135,1750201840454,-883.04,0.00022904,6]
[366350137,1750201840465,-460.0,0.00022904,6]
[366350138,1750201840475,-460.0,0.00022904,6]
[366350139,1750201840485,-460.0,0.00022904,6]
[366350140,1750201840494,-460.0,0.00022904,6]
[366350141,1750201840505,-460.0,0.00022904,6]
[366350142,1750201840514,-2078.0,0.00022904,6]
[366350143,1750201840523,-781.5,0.00022904,6]
[366350144,1750201840533,-692.48,0.00023,7]
[366350145,1750201840543,-636.92513685,0.00023003,8]
[366350146,1750201840552,-604.96,0.00023013,6]
[366350147,1750201840562,-460.0,0.00023013,6]
[366350148,1750201840571,-460.0,0.00023013,6]
[366350149,1750201840581,-648.71,0.00023013,6]
[366350150,1750201840591,-460.0,0.00023013,6]
[366350151,1750201840601,-460.0,0.00023013,6]
[366350152,1750201840611,-883.04,0.00023013,6]
[366350153,1750201840620,-460.0,0.00023013,6]
[366350154,1750201840630,-460.0,0.00023013,6]
[366350155,1750201840640,-460.0,0.00023013,6]
[366350156,1750201840649,-269.52,0.00023013,6]
[366350157,1750201840659,-460.0,0.00023013,6]
[366350158,1750201840668,-2078.0,0.00023013,6]
[366350159,1750201840677,-781.5,0.00023013,6]
[366350160,1750201840687,-500.0,0.00023059,2]
[366350161,1750201840696,-1000.0,0.00023065,2]
[366350162,1750201840706,-604.96,0.00023123,6]
[366350163,1750201840717,-460.0,0.00023123,6]
[366350164,1750201840729,-460.0,0.00023123,6]
[366350165,1750201840739,-648.71,0.00023123,6]
[366350166,1750201840748,-460.0,0.00023123,6]
[366350167,1750201840758,-460.0,0.00023123,6]
[366350169,1750201840767,-883.04,0.00023123,6]
[366350171,1750201840777,-460.0,0.00023123,6]
[366350173,1750201840786,-460.0,0.00023123,6]
[366350175,1750201840795,-478.05,0.00023123,6]
[366350177,1750201840806,-380.24,0.00023123,6]
[366350178,1750201840815,-2078.0,0.00023123,6]
[366350180,1750201840824,-781.5,0.00023123,6]
[366350182,1750201840834,-636.92513685,0.00023141,8]
[366350184,1750201840843,-604.96,0.00023232,6]
[366350186,1750201840852,-460.0,0.00023232,6]
[366350188,1750201840861,-460.0,0.00023232,6]
[366350190,1750201840871,-648.71,0.00023232,6]
[366350192,1750201840880,-460.0,0.00023232,6]
[366350194,1750201840889,-364.42215602,0.00023232,6]
[366350196,1750201840899,-883.04,0.00023232,6]
[366350198,1750201840908,-460.0,0.00023232,6]
[366350200,1750201840917,-460.0,0.00023232,6]
[366350201,1750201840926,-2078.0,0.00023232,6]
[366350203,1750201840936,-781.5,0.00023232,6]
[366350205,1750201840947,-636.92513685,0.00023279,8]
[366350206,1750201840956,-604.96,0.00023342,6]
[366350207,1750201840966,-460.0,0.00023342,6]
[366350208,1750201840975,-648.71,0.00023342,6]
[366350209,1750201840985,-352.30150689,0.00023342,6]
[366350210,1750201840994,-460.0,0.00023342,6]
[366350211,1750201841005,-883.04,0.00023342,6]
[366350212,1750201841014,-460.0,0.00023342,6]
[366350213,1750201841024,-460.0,0.00023342,6]
[366350214,1750201841033,-2078.0,0.00023342,6]
[366350215,1750201841043,-781.5,0.00023342,6]
[366350216,1750201841054,-636.92513685,0.00023417,9]
[366350217,1750201841063,-604.96,0.00023452,6]
[366350218,1750201841073,-460.0,0.00023452,6]
[366350219,1750201841082,-648.71,0.00023452,6]
[366350220,1750201841091,-460.0,0.00023452,6]
[366350221,1750201841101,-883.04,0.00023452,6]
[366350222,1750201841111,-460.0,0.00023452,6]
[366350223,1750201841120,-460.0,0.00023452,6]
[366350224,1750201841130,-2078.0,0.00023452,6]
[366350225,1750201841139,-781.5,0.00023452,6]
[366350226,1750201841149,-222.7,0.00023465,6]
[366350227,1750201841158,-207.4,0.00023475,2]
[366350228,1750201841167,-500.0,0.00023531,2]
[366350229,1750201841177,-224.94033502,0.00023531,2]
[366350230,1750201841186,-500.0,0.00023531,2]
[366350231,1750201841196,-382.41638356,0.00023531,2]
[366350232,1750201841205,-59491.36464,0.00023532,2]
[366350233,1750201841215,-25000.0,0.00023533,2]
[366350234,1750201841224,-1042.82386827,0.00023533,2]
[366350235,1750201841234,-160.0,0.0002354,2]
[366350236,1750201841243,-213.39869953,0.0002354,2]
[366350237,1750201841252,-835.82910252,0.0002354,2]
[366350238,1750201841262,-229.94211981,0.0002354,2]
[366350239,1750201841271,-424.62582665,0.0002354,2]
[366350240,1750201841281,-160.0,0.0002354,2]
[366350241,1750201841291,-636.92513685,0.00023555,9]
[366350242,1750201841301,-200.0,0.00023561,6]
[366350243,1750201841313,-200.0,0.00023561,6]
[366350244,1750201841323,-200.0,0.00023561,6]
[366350245,1750201841333,-200.0,0.00023561,6]
[366350246,1750201841343,-200.0,0.00023561,6]
[366350247,1750201841355,-200.0,0.00023561,6]
[366350248,1750201841365,-200.0,0.00023561,6]
[366350249,1750201841375,-200.0,0.00023561,6]
[366350250,1750201841387,-200.0,0.00023561,6]
[366350251,1750201841396,-604.96,0.00023561,6]
[366350252,1750201841405,-460.0,0.00023561,6]
[366350253,1750201841414,-648.71,0.00023561,6]
[366350254,1750201841424,-460.0,0.00023561,6]
[366350255,1750201841433,-883.04,0.00023561,6]
[366350256,1750201841443,-460.0,0.00023561,6]
[366350257,1750201841453,-460.0,0.00023561,6]
[366350258,1750201841463,-2078.0,0.00023561,6]
[366350259,1750201841472,-781.5,0.00023561,6]
[366350260,1750201841482,-1241.06525426,0.00023589,2]
[366350261,1750201841492,-500.0,0.00023597,2]
[366350262,1750201841502,-500.0,0.00023613,2]
[366350263,1750201841512,-222.7,0.0002362,6]
[366350264,1750201841522,-1241.06525426,0.00023644,2]
[366350265,1750201841531,-1241.06525426,0.00023645,2]
[366350266,1750201841541,-604.96,0.00023671,6]
[366350267,1750201841551,-498.64970069,0.00023671,6]
[366350268,1750201841561,-648.71,0.00023671,6]
[366350269,1750201841571,-460.0,0.00023671,6]
[366350270,1750201841581,-883.04,0.00023671,6]
[366350271,1750201841591,-460.0,0.00023671,6]
[366350272,1750201841600,-460.0,0.00023671,6]
[366350273,1750201841609,-2078.0,0.00023671,6]
[366350274,1750201841619,-781.5,0.00023671,6]
[366350275,1750201841629,-636.92513685,0.00023693,9]
[366350276,1750201841639,-1241.06525426,0.00023695,2]
[366350277,1750201841649,-246.0,0.00023753,2]
[366350278,1750201841658,-326.80559789,0.00023769,2]
[366350279,1750201841668,-500.0,0.00023769,2]
[366350280,1750201841678,-222.7,0.00023775,6]
[366350281,1750201841686,-500.0,0.00023778,2]
[366350282,1750201841695,-500.0,0.00023778,2]
[366350283,1750201841703,-500.0,0.00023778,2]
[366350284,1750201841712,-500.0,0.00023778,2]
[366350285,1750201841721,-500.0,0.00023778,2]
[366350286,1750201841729,-600.0,0.00023778,2]
[366350287,1750201841737,-500.0,0.00023778,2]
[366350288,1750201841746,-500.0,0.00023778,2]
[366350289,1750201841755,-500.0,0.00023778,2]
[366350290,1750201841765,-500.0,0.00023778,2]
[366350291,1750201841775,-500.0,0.00023778,2]
[366350292,1750201841784,-604.96,0.0002378,6]
[366350293,1750201841794,-648.71,0.0002378,6]
[366350294,1750201841805,-460.0,0.0002378,6]
[366350295,1750201841822,-883.04,0.0002378,6]
[366350296,1750201841831,-460.0,0.0002378,6]
[366350297,1750201841842,-460.0,0.0002378,6]
[366350298,1750201841852,-2078.0,0.0002378,6]
[366350299,1750201841861,-781.5,0.0002378,6]
[366350300,1750201841872,-500.0,0.00023782,2]
[366350301,1750201841882,-500.0,0.00023782,2]
[366350302,1750201841892,-500.0,0.00023782,2]
[366350303,1750201841901,-500.0,0.00023782,2]
[366350304,1750201841911,-315.78308288,0.00023782,2]
[366350305,1750201841920,-500.0,0.00023782,2]
[366350306,1750201841931,-500.0,0.00023782,2]
[366350307,1750201841941,-500.0,0.00023782,2]
[366350308,1750201841951,-500.0,0.00023782,2]
[366350309,1750201841961,-500.0,0.00023782,2]
[366350310,1750201841971,-420.0,0.00023817,2]
[366350311,1750201841980,-361.0,0.00023817,2]
[366350312,1750201841990,-636.92513685,0.00023831,10]
[366350313,1750201841999,-276.0,0.00023861,2]
[366350314,1750201842009,-156.44023459,0.00023863,2]
[366350315,1750201842019,-246.0,0.00023865,2]
[366350316,1750201842028,-604.96,0.0002389,6]
[366350317,1750201842037,-648.71,0.0002389,6]
[366350318,1750201842047,-460.0,0.0002389,6]
[366350319,1750201842056,-883.04,0.0002389,6]
[366350320,1750201842065,-460.0,0.0002389,6]
[366350321,1750201842075,-460.0,0.0002389,6]
[366350322,1750201842084,-2078.0,0.0002389,6]
[366350323,1750201842094,-781.5,0.0002389,6]
[366350324,1750201842103,-222.7,0.00023929,7]
[366350325,1750201842113,-636.92513685,0.00023969,10]
[366350326,1750201842122,-246.0,0.00023998,2]
[366350327,1750201842132,-3000.0,0.00024,2]
[366350328,1750201842142,-202.43673506,0.00024,2]
[366350329,1750201842151,-158.49,0.00024,2]
[366350330,1750201842160,-604.96,0.00024,6]
[366350331,1750201842170,-648.71,0.00024,6]
[366350332,1750201842179,-356.58,0.00024,6]
[366350333,1750201842189,-883.04,0.00024,6]
[366350334,1750201842199,-460.0,0.00024,6]
[366350335,1750201842209,-460.0,0.00024,6]
[366350336,1750201842219,-2078.0,0.00024,6]
[366350337,1750201842229,-781.5,0.00024,6]
[366350338,1750201842239,-3000.0,0.0002401,2]
[366350339,1750201842249,-3000.0,0.0002402,2]
[366350340,1750201842258,-3000.0,0.0002403,2]
[366350341,1750201842268,-3623.341463,0.0002404,2]
[366350342,1750201842278,-500.0,0.00024048,2]
[366350343,1750201842287,-222.7,0.00024084,7]
[366350344,1750201842297,-3000.0,0.00024088,4]
[366350345,1750201842308,-636.92513685,0.00024107,10]
[366350346,1750201842318,-604.96,0.00024109,6]
[366350347,1750201842327,-648.71,0.00024109,6]
[366350348,1750201842337,-883.04,0.00024109,6]
[366350349,1750201842346,-460.0,0.00024109,6]
[366350350,1750201842361,-259.62,0.00024109,6]
[366350351,1750201842371,-2078.0,0.00024109,6]
[366350352,1750201842380,-781.5,0.00024109,6]
[366350353,1750201842390,-500.0,0.0002416,2]
[366350354,1750201842401,-500.0,0.0002416,2]
[366350355,1750201842411,-1093.89,0.0002416,2]
[366350356,1750201842420,-500.0,0.00024164,2]
[366350357,1750201842432,-156.0289342,0.00024164,2]
[366350358,1750201842441,-156.44023459,0.00024164,2]
[366350359,1750201842451,-156.02893419,0.00024164,2]
[366350360,1750201842459,-156.0289342,0.00024164,2]
[366350361,1750201842469,-153.0,0.00024164,2]
[366350362,1750201842479,-2816.68661021,0.00024166,2]
[366350363,1750201842488,-3000.0,0.00024186,4]
[366350364,1750201842498,-1105.95,0.000242,2]
[366350365,1750201842507,-692.48,0.000242,7]
[366350366,1750201842517,-604.96,0.00024219,6]
[366350367,1750201842527,-648.71,0.00024219,6]
[366350368,1750201842537,-883.04,0.00024219,6]
[366350369,1750201842547,-460.0,0.00024219,6]
[366350370,1750201842557,-2078.0,0.00024219,6]
[366350371,1750201842566,-781.5,0.00024219,6]
[366350372,1750201842575,-222.7,0.00024239,7]
[366350373,1750201842586,-636.92513685,0.00024245,10]
[366350374,1750201842595,-500.0,0.00024258,2]
[366350375,1750201842605,-509.22,0.00024277,2]
[366350376,1750201842615,-151.0,0.000243,9]
[366350377,1750201842624,-1000.0,0.00024317,2]
[366350378,1750201842633,-1000.0,0.00024326,2]
[366350379,1750201842643,-1003.23448482,0.00024326,2]
[366350380,1750201842653,-1000.0,0.00024326,2]
[366350381,1750201842662,-1000.0,0.00024326,2]
[366350382,1750201842672,-1000.0,0.00024326,2]
[366350383,1750201842682,-1200.0,0.00024326,2]
[366350384,1750201842692,-1000.0,0.00024326,2]
[366350385,1750201842701,-1000.0,0.00024326,2]
[366350386,1750201842711,-1000.0,0.00024326,2]
[366350387,1750201842721,-1000.0,0.00024326,2]
[366350388,1750201842730,-507.36256724,0.00024326,2]
[366350389,1750201842741,-604.96,0.00024328,6]
[366350390,1750201842751,-648.71,0.00024328,6]
[366350391,1750201842761,-883.04,0.00024328,6]
[366350392,1750201842770,-460.0,0.00024328,6]
[366350393,1750201842779,-2078.0,0.00024328,6]
[366350394,1750201842789,-781.5,0.00024328,6]
[366350395,1750201842798,-1000.0,0.0002433,2]
[366350396,1750201842808,-1085.07903443,0.0002433,2]
[366350397,1750201842817,-1000.0,0.0002433,2]
[366350398,1750201842826,-1000.0,0.0002433,2]
[366350399,1750201842836,-1000.0,0.0002433,2]
[366350400,1750201842845,-551.40217156,0.0002433,2]
[366350401,1750201842855,-1000.0,0.0002433,2]
[366350402,1750201842865,-1002.17264723,0.0002433,2]
[366350403,1750201842875,-1000.0,0.0002433,2]
[366350404,1750201842885,-276.0,0.00024369,2]
[366350405,1750201842895,-636.92513685,0.00024383,11]
[366350406,1750201842904,-222.7,0.00024393,7]
[366350407,1750201842914,-9506.84671721,0.00024434,2]
[366350408,1750201842924,-5000.0,0.00024434,2]
[366350409,1750201842933,-5000.0,0.00024434,2]
[366350412,1750201843053,-5000.0,0.00024434,2]
[366350413,1750201843066,-5000.0,0.00024434,2]
[366350414,1750201843076,-605.17632093,0.00024438,6]
[366350415,1750201843086,-648.93,0.00024438,6]
[366350417,1750201843096,-883.1925,0.00024438,6]
[366350419,1750201843106,-299.70398746,0.00024438,6]
[366350420,1750201843115,-2078.20264741,0.00024438,6]
[366350421,1750201843125,-781.59318787,0.00024438,6]
[366350422,1750201843135,-406.0,0.000245,2]
[366350423,1750201843144,-500.0,0.000245,2]
[366350424,1750201843154,-151.0,0.000245,10]
[366350425,1750201843164,-780.586686,0.000245,3]
[366350426,1750201843173,-636.92513685,0.00024521,11]
[366350427,1750201843183,-222.7,0.00024548,7]
[366350428,1750201843193,-300.0,0.00024657,4]
[366350429,1750201843203,-160.0,0.00024657,4]
[366350430,1750201843213,-200.0,0.00024657,6]
[366350431,1750201843222,-209.12148944,0.00024657,6]
[366350432,1750201843232,-1000.0,0.00024658,2]
[366350433,1750201843242,-1000.0,0.00024658,2]
[366350434,1750201843252,-1000.0,0.00024658,2]
[366350435,1750201843263,-1000.0,0.00024658,2]
[366350436,1750201843273,-1000.0,0.00024658,2]
[366350437,1750201843283,-169.95627862,0.00024658,2]
[366350438,1750201843293,-1000.0,0.00024658,2]
[366350439,1750201843302,-380.0,0.00024658,2]
[366350440,1750201843312,-1000.0,0.00024658,2]
[366350441,1750201843322,-1000.0,0.00024658,2]
[366350442,1750201843332,-636.92513685,0.00024659,11]
[366350443,1750201843342,-270.0,0.00024664,2]
[366350444,1750201843353,-151.0,0.000247,9]
[366350445,1750201843364,-222.7,0.00024703,7]
[366350446,1750201843374,-500.0,0.00024729,2]
[366350447,1750201843384,-160.0,0.0002479,2]
[366350448,1750201843393,-2200.0,0.00024791,2]
[366350449,1750201843403,-636.92513685,0.00024797,11]
[366350450,1750201843416,-160.0,0.000248,7]
[366350451,1750201843425,-15643.85048551,0.000248,7]
[366350452,1750201843435,-13631.9458103,0.000248,2]
[366350453,1750201843445,-424.62582665,0.000248,7]
[366350454,1750201843455,-173.93735585,0.000248,4]
[366350455,1750201843465,-173.93735585,0.000248,4]
[366350456,1750201843475,-173.93735585,0.000248,4]
[366350457,1750201843485,-173.93,0.000248,4]
[366350458,1750201843495,-162.34153213,0.000248,4]
[366350459,1750201843505,-162.34153213,0.000248,4]
[366350460,1750201843515,-162.34153213,0.000248,4]
[366350461,1750201843525,-162.34153213,0.000248,4]
[366350462,1750201843535,-162.34153213,0.000248,4]
[366350463,1750201843545,-162.34153213,0.000248,4]
[366350465,1750201843555,-162.34153213,0.000248,4]
[366350467,1750201843565,-162.34153213,0.000248,4]
[366350469,1750201843575,-162.34153213,0.000248,4]
[366350470,1750201843585,-150.0,0.0002481,2]